Cogmind - Beta 13 @@@ ROGUE MODE // 2024.05.22 @ 23:25:29 Player: Occam Result: Destroyed by QD-60X(R) with Subdweller Laser Performance ------------- Evolutions (0) 0 Regions Visited (3) 600 Robots Destroyed (52) 260 Value Destroyed (1086) 1086 Prototype IDs (2) 40 Alien Tech Used (0) 0 Bonus (0) 0 TOTAL SCORE: 1986 Bonus ------- None Cogmind --------- Core Integrity 0/250 Matter 290/300 Energy 250/250 System Corruption 1% Temperature Cool (18) Movement Rolling (150) Ox4 Location -10/Subcaves Parts ------- > --- POWER (1) -------- Ion Engine > --- PROPULSION (2) --- Light Treads Subdweller Monowheel > --- UTILITY (2) ------ Huge Storage Unit Structural Scanner > --- WEAPON (2) ------- Assault Rifle Assault Rifle > --- INVENTORY (25) --- Ion Engine Improved Ion Engine Light Treads Light Treads Light Treads Light Treads Compact Wheel Compact Wheel Compact Wheel Heat Sink Huge Storage Unit Structural Scanner Seismic Detector ECM Suite Hacking Suite Thief Drone Bay (3/3) Improved EM Shotgun Improved EM Shotgun Assault Rifle Assault Rifle Assault Rifle Light Cannon Grenade Launcher Grenade Launcher Datajack Peak State ------------ > --- POWER ------------ Ion Engine > --- PROPULSION ------- Light Treads Wheel > --- UTILITY ---------- Huge Storage Unit Thief Drone Bay > --- WEAPON ----------- Assault Rifle Assault Rifle > --- INVENTORY -------- Ion Engine Improved Ion Engine Light Treads Light Treads Light Treads Light Treads Wheel Heat Sink Huge Storage Unit Structural Scanner Structural Scanner Seismic Detector ECM Suite Hacking Suite Improved EM Shotgun Improved EM Shotgun Assault Rifle Assault Rifle Assault Rifle Assault Rifle Light Cannon Grenade Launcher Grenade Launcher Datajack [Rating: 16] Favorites ----------- Power Ion Engine Engine Ion Engine Propulsion Light Treads Treads Light Treads Leg Aluminum Leg Wheel Compact Wheel Utility Huge Storage Unit Device Structural Scanner Storage Huge Storage Unit Weapon Assault Rifle Energy Gun Small Laser Ballistic Gun Assault Rifle Ballistic Cannon Light Cannon Build | -11 -10 -10 -10 ------- Run | Yrd Mat Min Sub Slots Evolved . | . . . . Power . | . . . . Propulsion . | . . . . Utility . | . . . . Weapon . | . . . . Parts Attached 30 | 1 15 12 2 Power 3 | . 2 1 . Engine 3 | . 2 1 . Core . | . . . . Reactor . | . . . . Propulsion 12 | . 5 6 1 Treads 5 | . 3 2 . Leg . | . . . . Wheel 7 | . 2 4 1 Hover . | . . . . Flight . | . . . . Utility 6 | 1 2 3 . Device 4 | 1 . 3 . Storage 2 | . 2 . . Processor . | . . . . Hackware . | . . . . Protection . | . . . . Artifact . | . . . . Weapon 9 | . 6 2 1 Energy Gun 1 | . 1 . . Energy Cannon . | . . . . Ballistic Gun 7 | . 5 1 1 Ballistic Cannon 1 | . . 1 . Launcher . | . . . . Special Weapon . | . . . . Impact Weapon . | . . . . Slashing Weapon . | . . . . Piercing Weapon . | . . . . Special Melee Weapon . | . . . . Unidentified Prototypes 2 | . 1 1 . Parts Lost 8 | . 5 2 1 Power 1 | . 1 . . Propulsion 3 | . 1 2 . Utility . | . . . . Weapon 4 | . 3 . 1 Highest Loss Streak 2 | . 2 1 1 To Critical Strikes . | . . . . Average Slot Usage (%) 99 | . 99 99 100 Engine 14 | . 14 14 14 Treads 16 | . 17 14 14 Wheel 11 | . 8 12 14 Device 14 | . 14 14 14 Storage 14 | . 14 14 14 Ballistic Gun 27 | . 26 27 28 Naked Turns . | . . . . Heaviest Build 93 | 12 90 93 90 Greatest Support 40 | 20 40 40 20 Greatest Overweight (x) 9 | . 5 9 5 Average Overweight (x) 4 | . 2 6 4 Largest Inventory Capacity 25 | 8 25 25 25 Average Capacity 22 | 8 19 25 25 Most Carried 25 | 6 20 25 25 Average Carried 19 | 5 15 22 24 Final Capacity 25 | 8 25 25 25 Final Carried 25 | 5 20 25 25 Class Distribution -------------------- 100% | Mutant Dominant Class ---------------- Mutant | -10/Materials Mutant | -10/Mines Mutant | -10/Subcaves Resources | -11 -10 -10 -10 ----------- Run | Yrd Mat Min Sub Matter Collected 1336 | 233 657 351 95 Remotely . | . . . . Salvage Created 1777 | 138 926 553 160 Parts 115 | 7 70 27 11 Haulers Intercepted . | . . . . Recyclers Shooed 4 | . 3 1 . Parts Field Recycled . | . . . . Retrieved Matter . | . . . . Parts Self-Destructed 5 | . . . 5 Prevented . | . . . . Kills | -11 -10 -10 -10 ------- Run | Yrd Mat Min Sub Combat Hostiles Destroyed 31 | . 18 9 4 Guns 31 | . 18 9 4 Classes Destroyed 11 | 2 6 2 1 Worker 7 | . 3 4 . Builder 1 | . 1 . . Tunneler 4 | 2 1 1 . Recycler 5 | 1 3 1 . Operator 2 | . 2 . . Watcher 3 | . 3 . . Swarmer 6 | . 6 . . Grunt 20 | . 12 6 2 Sentry 2 | . . 2 . Subdweller 2 | . . . 2 Assembled 1 | . . 1 . Best Kill Streak 6 | 2 6 6 2 Combat Bots Only 5 | . 5 3 2 Max Kills in Single Turn 1 | 1 1 1 1 Gunslinging . | . . . . Exploded . | . . . . Melee . | . . . . Uniques/NPCs Destroyed . | . . . . Combat | -11 -10 -10 -10 -------- Run | Yrd Mat Min Sub Hostile Shots Fired 168 | . 117 38 13 Missed 33 | . 26 6 1 Damage Taken 1577 | . 905 398 274 Core 250 | . 134 42 74 Absorbed by Shields . | . . . . Core Remaining (%) 100 | 100 . . . Volleys Fired 148 | 11 87 38 12 Largest 2 | 2 2 2 2 Hottest 60 | 60 40 40 40 Shots Fired 295 | 22 174 75 24 Gun 294 | 22 174 74 24 Cannon 1 | . . 1 . Launcher . | . . . . Special . | . . . . Kinetic 284 | 11 174 75 24 Thermal 11 | 11 . . . Explosive . | . . . . Electromagnetic . | . . . . Robot Hit Streak 14 | 3 14 7 9 Robot Miss Streak 7 | 2 7 2 2 Penetration Max . | . . . . Secondary Targets 7 | . 4 2 1 Max Gunslinging Chain 1 | . 1 1 1 Shots Hit Robots 189 | 12 109 50 18 Core Hits 79 | 4 45 23 7 Critical Kills 1 | . 1 . . Critical Parts Destroyed . | . . . . Critical Strikes 1 | . 1 . . Destroy 1 | . 1 . . Melee Attacks . | . . . . Impact . | . . . . Slashing . | . . . . Piercing . | . . . . Sneak Attacks . | . . . . Combat Hostiles . | . . . . Follow-up Attacks . | . . . . Damage Inflicted 2451 | 141 1451 644 215 Guns 2451 | 141 1451 644 215 Cannons . | . . . . Explosions . | . . . . Melee . | . . . . Ramming . | . . . . Kinetic 2410 | 100 1451 644 215 Thermal 41 | 41 . . . Explosive . | . . . . Electromagnetic . | . . . . Impact . | . . . . Slashing . | . . . . Piercing . | . . . . Highest Corruption 1 | . 1 1 1 Average Corruption 1 | . 1 1 1 Corruption Purged . | . . . . Corruption Blocked . | . . . . Effects 13 | . 2 7 4 Message Errors 3 | . . 2 1 Matter Fused 4 | . 1 1 2 Heat Flow Errors 2 | . . 2 . Energy Discharges 1 | . . . 1 Data Loss (minor) 3 | . 1 2 . Overload Shots . | . . . . Overflow Damage . | . . . . Projectiles . | . . . . Explosions . | . . . . Melee . | . . . . Knockbacks . | . . . . Impact . | . . . . Kinetic . | . . . . Secondary . | . . . . Self-Inflicted Damage . | . . . . Shots . | . . . . Rammed . | . . . . Targets Rammed . | . . . . Kicked . | . . . . Crushed . | . . . . Highest Temperature 254 | . 20 254 . Average Temperature 65 | . 6 93 . Received Heat Transfer 630 | . 345 192 93 Siege Activations . | . . . . Robots Corrupted . | . . . . Combat Hostiles . | . . . . Parts Fried . | . . . . Impact Corruptions . | . . . . Robots Melted . | . . . . Combat Hostiles . | . . . . Parts Melted . | . . . . Heat Transferred 100 | 100 . . . Parts Sabotaged . | . . . . Parts Stolen . | . . . . Parts Stripped . | . . . . Power Chain Reactions . | . . . . Alert | -11 -10 -10 -10 ------- Run | Yrd Mat Min Sub Peak Influence 355 | 15 355 150 . Initial 68 | . 9 68 . Average 116 | 7 183 46 . Maximum Alert Level 1 | . 1 . . Low Security (%) 74 | 100 51 100 . Level 1 25 | . 48 . . Level 2 . | . . . . Level 3 . | . . . . Level 4 . | . . . . Level 5 . | . . . . High Security . | . . . . Max Security . | . . . . Squads Dispatched 5 | . 5 . . Investigation 4 | . 4 . . Extermination . | . . . . Reinforcement 1 | . 1 . . Assault . | . . . . Garrison . | . . . . Intercept . | . . . . Searches Triggered . | . . . . Construction Impeded . | . . . . Haulers Reinforced . | . . . . Active Scanning Responses . | . . . . Cargo Convoy Interrupts . | . . . . Stealth | -11 -10 -10 -10 --------- Run | Yrd Mat Min Sub Distress Signals 3 | . 3 . . Communications Jammed . | . . . . Distress Signals . | . . . . Times Spotted 46 | . 30 9 7 Peak Tracking Total 4 | . 4 2 2 Tactical Retreats 3 | . 3 . . Traps | -11 -10 -10 -10 ------- Run | Yrd Mat Min Sub Traps Triggered 2 | . 2 . . Indirectly . | . . . . Trap Hack Attempts . | . . . . Triggered . | . . . . Disarmed . | . . . . Reprogrammed . | . . . . Reused . | . . . . Traps Extracted . | . . . . Installed . | . . . . Triggered . | . . . . Machines | -11 -10 -10 -10 ---------- Run | Yrd Mat Min Sub Machines Disabled . | . . . . Max in Single Turn . | . . . . Machines Repaired . | . . . . Machines Dismantled . | . . . . Machines Sabotaged . | . . . . Overloaded Fab Kills . | . . . . Hacking | -11 -10 -10 -10 --------- Run | Yrd Mat Min Sub Machines Accessed 7 | . 6 1 . Terminals 5 | . 5 . . Fabricators . | . . . . Repair Stations . | . . . . Recycling Units 1 | . 1 . . Scanalyzers . | . . . . Garrison Access . | . . . . Total Hacks 20 | . 19 1 . Successful 11 | . 10 1 . Failed 9 | . 9 . . Catastrophic 2 | . 2 . . Database Lockouts . | . . . . Manual 12 | . 12 . . Terminals 18 | . 18 . . Fabricators . | . . . . Repair Stations . | . . . . Recycling Units 1 | . 1 . . Scanalyzers . | . . . . Garrison Access . | . . . . Terminal Hacks 7 | . 6 1 . Part Schematic 1 | . 1 . . Robot Schematic 1 | . 1 . . Robot Analysis 1 | . 1 . . Open Door 1 | . . 1 . Alert Level 1 | . 1 . . Locate Traps 1 | . 1 . . Hauler Manifests 1 | . 1 . . Fabricator Hacks . | . . . . Repair Station Hacks . | . . . . Recycling Unit Hacks 1 | . 1 . . Report Inventory 1 | . 1 . . Scanalyzer . | . . . . Garrison Access Hacks . | . . . . Unauthorized Hacks 3 | . 3 . . Terminals 3 | . 3 . . Botnet 2 | . 2 . . Operators 1 | . 1 . . Fabricators . | . . . . Repair Stations . | . . . . Recycling Units . | . . . . Scanalyzers . | . . . . Garrison Access . | . . . . Data Cores Recovered 1 | . 1 . . Used 1 | . 1 . . Hacking Detections 5 | . 5 . . Full Trace Events 2 | . 2 . . Feedback Events 1 | . 1 . . Corruption 1 | . 1 . . Feedback Blocked . | . . . . Robot Schematics Acquired 1 | . 1 . . Robots Built . | . . . . Authchips . | . . . . Time . | . . . . Total Robot Build Rating . | . . . . Part Schematics Acquired 1 | . 1 . . Parts Built . | . . . . Authchips . | . . . . Time . | . . . . Total Part Build Rating . | . . . . Parts Repaired . | . . . . Time . | . . . . Parts Recycled . | . . . . Recycled Matter . | . . . . Retrieved Matter . | . . . . Retrieved Components . | . . . . Parts Scanalyzed . | . . . . Part Schematics Acquired . | . . . . Parts Damaged . | . . . . Bothacking | -11 -10 -10 -10 ------------ Run | Yrd Mat Min Sub Used RIF Installer . | . . . . Robots Hacked . | . . . . Non-combat . | . . . . Combat . | . . . . Robot Hacks Applied . | . . . . Relay Couplers Released . | . . . . Fabnet Peak Effective % . | . . . . Robots Rewired . | . . . . Allies Hacked . | . . . . Hacks Repelled . | . . . . Allies | -11 -10 -10 -10 -------- Run | Yrd Mat Min Sub Total Allies 2 | . . 2 . Largest Group 2 | . . 2 2 Highest-Rated Group 48 | . . 48 48 Highest-Rated Ally 31 | . . 31 31 Total Orders . | . . . . Ally Attacks 6 | . . . 6 Total Damage 105 | . . . 105 Kills . | . . . . Allies Corrupted . | . . . . Allies Melted . | . . . . Intel | -11 -10 -10 -10 ------- Run | Yrd Mat Min Sub Robot Analysis Total 1 | . 1 . . Derelict Logs Recovered 3 | . . 1 2 Drone Launches . | . . . . Drone Recoveries . | . . . . Exploration | -11 -10 -10 -10 ------------- Run | Yrd Mat Min Sub Turns Passed 3622 | 73 1590 1409 550 Spaces Moved 1651 | 31 775 545 300 Core . | . . . . Treads 238 | . 223 15 . Legs 100 | 31 69 . . Wheels 1313 | . 483 530 300 Hover . | . . . . Flight . | . . . . Fastest Speed 115 | 120 115 175 150 Average Speed 171 | 120 160 190 170 Slowest Speed 320 | 120 240 320 175 Overloaded Moves . | . . . . Propulsion Burnouts . | . . . . Robots Hopped . | . . . . Cave-ins Triggered . | . . . . Exploration Rate (%) 53 | 4 89 98 22 Regions Visited 3 Branch Regions 2 Pre-discovered Areas 1 | . . 1 . Known Exits Taken . | . . . . Unknown Exits Taken 3 | 1 1 1 . Scrap Searched 2 | . . 2 . Spaces Dug . | . . . . Terrain Destroyed . | . . . . Melee . | . . . . Projectile . | . . . . AOE . | . . . . Terrain Rammed . | . . . . Walls Destroyed . | . . . . Machines Disabled . | . . . . Actions | -11 -10 -10 -10 --------- Run | Yrd Mat Min Sub Total 2157 | 46 953 842 316 Wait 268 | . 35 232 1 Move 1648 | 30 774 544 300 Hop . | . . . . Pick Up 35 | 2 25 8 . Fast Attach 8 | . 4 3 1 Attach 13 | 1 8 3 1 Detach 11 | . 6 4 1 Swap 9 | . 3 6 . Drop 17 | 2 11 4 . Fire 148 | 11 87 38 12 Melee . | . . . . Ram . | . . . . Kick . | . . . . Crush . | . . . . Escape Stasis . | . . . . Rewire . | . . . . Trap . | . . . . Miscellaneous . | . . . . Route ------- -11/Scrapyard -10/Materials (discovered 4 exits: [*Mat x3] / *Min) -10/Mines (discovered 3 exits: [*Mat x2] / [*Sub]) -10/Subcaves History --------- Turn | Location | Event 26 | -11/Scrapyard | Discovered new exit (range 3) 74 | -11/Scrapyard | Entered Materials 192 | -10/Materials | Discovered new exit (range 15) 306 | -10/Materials | Build established: Mutant 641 | -10/Materials | Discovered new exit (range 16) 1060 | -10/Materials | Discovered new exit (range 6) 1534 | -10/Materials | Core integrity fell below 50% 1559 | -10/Materials | Discovered new exit (range 15) 1664 | -10/Materials | Entered Mines 1822 | -10/Mines | Excavation squad dispatched 1822 | -10/Mines | A large section of the Mines collapsed 2072 | -10/Mines | Excavation squad dispatched 2202 | -10/Mines | Discovered new exit (range 15) 2438 | -10/Mines | Discovered new exit (range 14) 2584 | -10/Mines | Learned location of Storage (-7) 2686 | -10/Mines | Discovered new exit (range 11) 2701 | -10/Mines | Found the Drone Emporium 2711 | -10/Mines | Found Prototype Device 2711 | -10/Mines | Identified Thief Drone Bay 3073 | -10/Mines | Entered Subcaves 3073 | -10/Subcaves | Accompanied by 2 allies 3078 | -10/Subcaves | Led the pair of lost Derelicts to an unsafe place 3122 | -10/Subcaves | Learned Materials security intel 3225 | -10/Subcaves | Learned Materials trap positions 3543 | -10/Subcaves | Core integrity fell below 20% 3623 | -10/Subcaves | A Subdweller sparked back to life 3623 | -10/Subcaves | A Subdweller sparked back to life 3623 | -10/Subcaves | A Subdweller sparked back to life 3623 | -10/Subcaves | Destroyed by QD-60X(R) with Subdweller Laser Last Messages --------------- Data stored: Materials trap records. 03352_ V2-UQV(g) triggered Piercing Trap. 03352_ Spikes shoot up from the floor. 03352_ V2-UQV(g) suffers critical hit (Impale). 03352_ V2-UQV(g) destroyed. 03353_ Subatomizers dissect the Beamcaster. 03364_ System corrupted: Matter fused (-5). 03367_ Subatomizers dissect the Beamcaster. 03421_ System corrupted: Matter fused (-8). 03485_ System corrupted: Energy discharge (-75). 03511_ Acquired Sub. Monowheel. 03534_ F KLN I43KDPUBIMES%A#19GEKJPSKK=:D7 03555_ PK-6WL(R) destroyed. 03558_ R7-NZ5(R) destroyed. 03560_ Subatomizers dissect the Sub. Monowheel. 03570_ Acquired 50 matter. 03591_ Acquired 11 matter. 03623_ QD-60X(R) creaks and sparks as it begins to move. 03623_ E8-20X(R) creaks and sparks as it begins to move. 03623_ 0L-LSY(R) creaks and sparks as it begins to move. Map ----- +----------------------------------------------------+ | ?????????????????????????##### #### | | ?????????????????????????## ## ######### | | ?????????????????????????## ?? ## ######## | | ?????????????????????????## ?????## ## ##????## | | ?????????????????????????????????####### ##????### | | ?????????????????????????????????##########??##### | | ???????????????????????????????????????####??##### | | ?????????????????????????????????????????????## | | ?????????????????????????????????????????????## | | ?????????????????????????????????????????????## | | ?????????????????????????????????????????????## | | ?????????????????????????????????????????????### | | ?????????????????????????????????????????????### | | ??????????????????????????????????????????????## | | ??????????????????????????????????????????????### | | ?????????????????????????????????????????????##### | | ????????????????????????????????????????????###### | | ????????????????????????????????????????????###" | | ??????????????????????#########??????????#####"" | | ??????????????????????#########???############## | | ??????????????????????##